bitfinex-derivatives/quotes_ETHF0:USTF0_20250824
["timestamp","ask_amount","ask_price","bid_price","bid_amount"]
[1756036096917,1.3727,4741.1,4741.0,0.7668]
[1756036098112,0.1471,4740.9,4740.8,0.8174]
[1756036098314,1.3727,4740.9,4740.8,1.1275]
[1756036098707,0.8226,4740.8,4740.0,0.16725262]
[1756036098909,1.3727,4740.8,4740.7,0.7668]
[1756036099108,0.5501,4740.6,4740.5,0.2223]
[1756036099307,1.3727,4740.6,4740.5,0.6052]
[1756036100108,1.3727,4740.6,4740.5,0.3708]
[1756036101210,1.3727,4740.6,4740.5,0.5324]
[1756036102417,1.3727,4740.6,4740.5,0.7668]
[1756036102613,1.3727,4740.6,4740.5,1.3458]
[1756036102917,0.2418,4740.6,4740.5,1.3458]
[1756036103511,1.3727,4741.3,4741.2,1.3458]
[1756036103710,1.91947436,4741.3,4741.2,1.3458]
[1756036104612,0.54677436,4741.3,4741.2,1.3458]
[1756036105125,1.30867436,4741.3,4741.2,1.3458]
[1756036106708,0.78857436,4741.3,4741.2,1.3458]
[1756036106904,0.54677436,4741.3,4741.2,1.3458]
[1756036107408,0.3589,4742.0,4741.2,4.5284]
[1756036107610,0.54696081,4741.9,4741.8,1.3458]
[1756036110520,1.14766081,4741.9,4741.8,1.3458]
[1756036110710,1.91966081,4741.9,4741.8,1.3458]
[1756036111323,1.45596081,4741.9,4741.8,1.3458]
[1756036111912,1.91966081,4741.9,4741.8,1.3458]
[1756036114014,0.403,4741.7,4741.6,0.2223]
[1756036114213,1.3727,4741.6,4741.5,0.2344]
[1756036114515,1.3727,4741.6,4740.2,30.391]
[1756036114516,1.3727,4741.5,4741.4,1.3458]
[1756036116220,0.3589,4741.9,4741.4,0.9659]
[1756036116426,0.5201,4741.9,4741.8,1.3458]
[1756036116623,0.54642965,4741.9,4741.8,1.3458]
[1756036117717,0.3457,4742.5,4741.8,1.3458]
[1756036117919,1.06959757,4742.4,4742.3,0.5276]
[1756036118124,1.06959757,4742.4,4742.3,1.3122]
[1756036118425,1.41529757,4742.4,4742.3,1.3122]
[1756036119924,1.63519757,4742.4,4742.3,1.3122]
[1756036120422,1.86719757,4742.4,4742.3,1.3122]
[1756036120822,1.41529757,4742.4,4742.3,1.3122]
[1756036121518,1.86719757,4742.4,4742.3,1.3122]
[1756036125322,1.41529757,4742.4,4742.3,1.3122]
[1756036125525,0.5656,4743.1,4742.3,1.3332]
[1756036125828,0.92211287,4743.0,4742.9,0.5276]
[1756036126127,1.86681287,4743.0,4742.9,1.3122]
[1756036132032,0.3457,4743.4,4742.9,1.3122]
[1756036132237,0.55203493,4743.3,4743.2,0.5276]
[1756036132439,0.55203493,4743.3,4743.2,1.3122]
[1756036134027,1.26803493,4743.3,4743.2,1.3122]
[1756036135432,1.26808815,4743.3,4743.2,1.3122]
[1756036136034,0.3457,4743.8,4743.2,1.3122]
[1756036136239,0.55213446,4743.7,4743.6,0.5276]
[1756036136540,0.716,4743.8,4743.7,1.165]
[1756036136742,0.55211337,4743.8,4743.7,1.3122]
[1756036136941,0.4519,4744.6,4744.1,1.3122]
[1756036137137,0.8631,4744.4,4744.3,0.5276]
[1756036137457,1.86712028,4744.4,4744.3,1.3122]
[1756036137636,1.41522028,4744.4,4744.3,1.3122]
[1756036137838,0.92242028,4744.4,4744.3,1.3122]
[1756036138436,0.3703,4744.4,4744.3,1.3122]
[1756036138639,0.3457,4744.6,4744.3,1.3122]
[1756036138839,0.55171052,4744.5,4744.3,0.5276]
[1756036139041,0.3457,4744.6,4744.4,0.5276]
[1756036139336,0.3457,4744.6,4742.2,0.21390944]
[1756036139337,0.3457,4744.6,4744.5,1.3122]
[1756036139734,0.3457,4744.9,4744.5,0.5276]
[1756036139941,1.1679,4744.9,4744.8,1.3122]
[1756036140134,1.86650582,4744.9,4744.8,1.3122]
[1756036140336,1.86650582,4744.9,4744.8,1.0786]
[1756036140540,1.86650582,4744.9,4744.8,1.3122]
[1756036140741,1.26750582,4744.9,4744.8,1.3122]
[1756036141047,0.92180582,4744.9,4744.8,1.3122]
[1756036141247,0.5656,4745.2,4744.8,1.3122]
[1756036141440,0.3457,4745.0,4744.9,1.3122]
[1756036141636,0.2199,4745.2,4745.0,0.2237]
[1756036141937,1.49919705,4745.1,4745.0,1.3122]
[1756036142246,1.315,4745.1,4745.0,1.3122]
[1756036143241,0.716,4745.1,4745.0,1.3122]
[1756036143640,0.3457,4745.4,4745.1,0.4433]
[1756036143848,0.716,4745.4,4745.3,1.3122]
[1756036144250,1.315,4745.4,4745.3,1.3122]
[1756036146350,0.8631,4745.4,4745.3,1.3122]
[1756036148056,0.3703,4745.4,4745.3,1.3122]
[1756036148353,0.7231,4745.4,4745.3,1.3122]
[1756036149153,1.3326,4745.4,4745.3,1.3122]
[1756036150749,1.3326,4745.4,4745.3,0.7986]
[1756036150948,0.5208,4745.4,4745.1,0.2342]
[1756036151156,0.537,4745.2,4745.1,0.773]
[1756036151352,1.3488,4745.2,4745.1,1.1185]
[1756036151554,1.3488,4745.2,4744.7,0.3455]
[1756036151754,0.537,4744.9,4744.8,0.455]
[1756036152055,1.3488,4744.9,4744.6,0.3455]
[1756036152258,1.3488,4744.7,4744.4,0.2342]
[1756036152461,0.537,4744.5,4744.4,0.5522]
[1756036152657,1.3488,4744.5,4744.4,1.123]
[1756036153255,1.3488,4744.5,4744.4,1.3438]
[1756036153751,0.3528,4744.8,4744.7,0.9983]
[1756036153954,0.3528,4745.0,4744.9,0.5433]
[1756036154157,0.3528,4745.0,4744.9,1.3438]
[1756036154358,0.7393,4745.0,4744.9,1.3438]
[1756036154760,1.3488,4745.0,4744.9,1.3438]
[1756036158455,0.8898,4745.0,4744.9,1.3438]
[1756036158650,0.7393,4745.0,4744.9,1.3438]
[1756036159055,0.8118,4745.3,4744.9,0.5433]
[1756036159265,1.1983,4745.3,4745.2,1.3438]
[1756036159562,1.74599528,4745.3,4745.2,1.3438]
[1756036160062,1.89649528,4745.3,4745.2,1.3438]
[1756036160355,0.93419528,4745.3,4745.2,1.3438]
[1756036160559,0.54769528,4745.3,4745.2,1.3438]
[1756036161854,0.54769528,4745.3,4745.2,1.3648]
[1756036162057,0.3528,4746.0,4745.2,0.5643]
[1756036162261,0.93493542,4745.9,4745.8,0.382]
[1756036162464,1.28773542,4745.9,4745.8,1.3438]
[1756036163459,0.54843542,4745.9,4745.8,1.3438]
[1756036169970,1.89723542,4745.9,4745.8,1.3438]
[1756036170374,1.89723542,4745.9,4745.8,0.9983]
[1756036170566,1.89723542,4745.9,4745.8,0.773]
[1756036170868,0.3528,4746.8,4746.6,0.5433]
[1756036171169,0.7393,4747.2,4747.1,1.3438]
[1756036171366,1.28820901,4747.2,4747.1,1.3438]
[1756036171565,1.74720901,4747.2,4747.1,1.3438]
[1756036171763,1.89770901,4747.2,4747.1,1.3438]
[1756036172166,0.54890901,4747.2,4747.1,1.3438]
[1756036172570,0.3528,4747.5,4747.1,0.5433]
[1756036172768,0.7393,4747.5,4747.4,1.3438]
[1756036172972,1.28801053,4747.5,4747.4,1.3438]
[1756036173173,1.74701053,4747.5,4747.4,1.3438]
[1756036173368,1.89751053,4747.5,4747.4,1.3438]
[1756036177377,0.90151053,4747.5,4747.4,1.3438]
[1756036177576,1.28921053,4747.5,4747.4,1.3438]
[1756036178076,1.89841053,4747.5,4747.4,1.3438]
[1756036179575,1.89841053,4747.5,4747.4,0.2208]
[1756036180472,1.89841053,4747.5,4747.1,0.2285]
[1756036180679,1.3559,4747.0,4746.9,0.2353]
[1756036181280,1.3559,4747.0,4746.9,0.7703]
[1756036181780,1.3559,4747.0,4746.7,0.3525]
[1756036181980,0.5363,4747.0,4745.8,0.021]
[1756036182176,0.9969,4746.9,4746.8,0.7703]
[1756036182500,30.366,4748.5,4745.2,19.2]
[1756036182501,0.2289,4746.8,4746.6,0.2353]
[1756036182678,1.3559,4746.7,4746.6,0.6191]
[1756036182882,0.7652,4746.7,4746.2,0.2353]
[1756036183076,1.3559,4746.1,4746.0,0.8902]
[1756036183577,1.3559,4746.1,4746.0,1.354]
[1756036184590,0.7467,4746.1,4746.0,1.354]
[1756036184774,1.2073,4746.2,4746.1,1.354]
[1756036185278,1.3559,4746.2,4746.1,1.354]
[1756036187085,1.3559,4746.2,4746.1,0.7703]
[1756036187385,1.3559,4746.2,4746.1,0.5418]
[1756036187583,1.3559,4746.2,4745.8,0.8163]
[1756036187779,1.3559,4745.9,4745.8,0.4638]
[1756036187978,1.3559,4745.9,4745.8,0.6191]
[1756036188184,1.3559,4745.9,4745.8,1.354]
[1756036188380,0.7467,4745.9,4745.8,1.354]
[1756036188587,0.8953,4745.9,4745.8,1.354]
[1756036189183,0.4606,4746.7,4746.4,1.354]
[1756036189381,0.359,4746.5,4745.4,0.1680817]
[1756036189590,0.3877,4745.7,4745.6,0.739]
[1756036189884,1.3559,4745.7,4745.6,0.8902]
[1756036190082,1.3559,4745.7,4745.6,1.354]
[1756036191579,1.3559,4745.2,4745.0,0.2353]
[1756036191782,0.5363,4745.0,4744.9,0.9675]
[1756036191983,1.3559,4745.0,4744.9,1.2028]
[1756036192185,1.3559,4745.0,4744.9,1.0015]
[1756036192384,1.3559,4745.0,4744.9,1.354]
[1756036192886,1.3559,4745.0,4744.9,1.0015]
[1756036193087,1.3559,4745.0,4744.9,0.7703]
[1756036193681,0.7652,4745.0,4744.7,0.4638]
[1756036193991,0.5363,4744.8,4744.4,0.2285]
[1756036194190,1.3559,4744.6,4744.5,0.7703]
[1756036194490,1.3559,4744.6,4744.5,1.354]
[1756036194979,1.2073,4744.6,4744.5,1.354]
[1756036195183,0.359,4747.0,4744.8,0.3525]
[1756036195383,2.67256266,4748.2,4745.2,1.354]
[1756036195384,0.24,4745.3,4745.2,1.354]
[1756036195579,1.0115,4745.3,4745.2,1.354]
[1756036199005,1.0322,4745.3,4745.2,1.354]
[1756036199398,1.0322,4745.3,4745.2,0.2353]
[1756036199597,1.0322,4745.3,4744.2,30.352]
[1756036199598,0.4208,4744.8,4744.7,0.3865]
[1756036199896,0.2731,4744.6,4744.2,0.3525]
[1756036200106,1.0322,4744.3,4744.2,1.1228]
[1756036200600,1.0322,4744.3,4744.2,0.7703]
[1756036201199,1.0322,4744.3,4744.2,1.354]
[1756036201396,0.7467,4744.3,4744.2,1.354]
[1756036201798,0.3877,4744.3,4744.2,1.354]
[1756036202204,0.24,4744.3,4744.2,1.354]
[1756036202409,0.3877,4744.3,4744.2,1.354]
[1756036202705,0.7467,4744.3,4744.2,1.354]
[1756036203210,1.0322,4743.8,4743.7,0.2353]
[1756036203905,0.4208,4743.8,4743.1,0.2353]
[1756036204111,1.0322,4743.2,4743.1,0.5418]
[1756036204305,1.0322,4743.2,4743.1,0.7703]
[1756036204912,1.0322,4743.2,4743.1,1.354]
[1756036207714,1.0322,4743.2,4743.1,1.0015]
[1756036207917,0.7467,4743.2,4743.1,1.3371]
[1756036208207,0.9242,4743.9,4743.8,1.3347]
[1756036208603,0.9569,4743.9,4743.8,1.3347]
[1756036208807,0.9774,4743.9,4743.8,1.3347]
[1756036210213,0.9774,4743.9,4743.8,0.9991]
[1756036210525,0.9774,4743.9,4743.8,0.5349]
[1756036210710,0.9774,4743.9,4743.8,0.2357]
[1756036212608,0.9774,4743.9,4743.8,0.3893]
[1756036212913,0.9774,4743.9,4743.8,0.5349]
[1756036213214,0.9774,4743.9,4743.8,0.7719]
[1756036213715,0.9774,4743.9,4743.8,0.3893]
[1756036214013,0.9774,4743.9,4743.8,0.2357]
[1756036215007,0.4053,4743.9,4743.5,0.237]
[1756036215212,0.9774,4743.2,4743.1,0.8718]
[1756036215408,0.9774,4743.2,4743.1,1.099]
[1756036215614,0.9774,4743.2,4743.1,1.3347]
[1756036216419,0.9569,4743.2,4743.1,1.3347]
[1756036216913,0.9774,4743.2,4743.1,1.3347]
[1756036219222,0.8288,4742.7,4742.6,0.1536]
[1756036219415,0.9775,4742.7,4742.6,0.2992]
[1756036219619,0.9775,4742.7,4742.6,0.6348]
[1756036219816,0.9775,4742.7,4742.6,1.3347]
[1756036220022,0.9775,4742.7,4742.2,0.5726]
[1756036220219,0.4054,4742.4,4742.3,0.7719]
[1756036220424,0.9775,4742.4,4742.3,1.3347]
[1756036221116,0.6993,4742.4,4742.3,1.3347]
[1756036221323,0.2239,4742.4,4742.3,1.3347]
[1756036221526,0.3267,4742.7,4742.3,1.3347]
[1756036221720,0.2454,4742.8,4742.3,0.5264]
[1756036222025,0.2454,4742.8,4742.1,19.318]
[1756036222026,0.5506,4742.6,4742.5,1.3347]
[1756036223029,0.6993,4742.6,4742.5,1.3347]
[1756036223330,0.9242,4742.6,4742.5,1.3347]
[1756036224430,0.6993,4742.6,4742.5,1.3347]
[1756036224726,0.2249,4744.2,4742.8,0.3356]
[1756036224939,1.52716454,4744.1,4744.0,0.7719]
[1756036227026,1.52716454,4744.1,4744.0,0.2357]
[1756036228625,1.52716454,4744.1,4744.0,0.5349]
[1756036229726,0.9775,4743.7,4743.6,0.2357]
[1756036229925,1.52716454,4743.7,4743.6,0.2357]
[1756036230527,0.1819,4743.3,4743.2,0.2357]
[1756036230727,1.52776454,4743.3,4743.2,0.2357]
[1756036231032,1.52776454,4743.3,4743.2,1.3347]
[1756036241142,0.9781,4743.3,4743.2,1.3347]
[1756036242741,0.9574,4743.3,4743.2,1.3347]
[1756036246442,0.9242,4743.3,4743.2,1.3347]
[1756036246640,0.2565,4744.8,4743.3,0.8129]
[1756036246841,19.279,4745.5,4744.4,0.753]
[1756036246842,1.0289,4744.5,4744.4,0.753]
[1756036247144,1.57989185,4744.5,4744.4,1.327]
[1756036247647,1.29019185,4744.5,4744.4,1.327]
[1756036248250,0.55099185,4744.5,4744.4,1.327]
[1756036248446,0.5879,4744.8,4744.7,0.3669]
[1756036248650,1.29054561,4744.8,4744.7,1.327]
[1756036248851,0.7392,4744.8,4744.7,1.327]
[1756036249046,0.5904,4745.2,4745.1,0.5141]
[1756036249351,1.28968166,4745.2,4745.1,1.327]
[1756036250347,0.2565,4745.6,4745.1,0.5141]
[1756036250552,1.52484999,4745.5,4745.4,1.327]
[1756036252149,0.7392,4745.5,4745.4,1.327]
[1756036252349,0.5904,4745.8,4745.4,0.5141]
[1756036252554,0.975,4745.8,4745.7,1.327]
[1756036252750,1.52418372,4745.8,4745.7,1.327]
[1756036253057,0.3846,4745.8,4745.7,1.327]
[1756036253256,0.3546,4746.1,4745.7,1.327]
[1756036253555,0.3546,4746.0,4745.9,1.327]
[1756036254353,0.2897,4746.2,4746.1,0.2943]
[1756036254552,1.22379937,4746.2,4746.1,1.1072]
[1756036254745,1.20309937,4746.2,4746.1,1.327]
[1756036254963,1.0082,4746.2,4746.1,1.327]
[1756036255158,1.55811682,4746.2,4746.1,1.327]
[1756036255553,0.93451682,4746.2,4746.1,1.327]
[1756036255858,1.28911682,4746.2,4746.1,1.327]
[1756036256556,1.52491682,4746.2,4746.1,1.327]
[1756036257159,0.54991682,4746.2,4746.1,1.327]
[1756036261048,1.13781682,4746.2,4746.1,1.327]
[1756036263355,1.28911682,4746.2,4746.1,1.327]
[1756036264756,1.57881682,4746.2,4746.1,1.327]
[1756036264959,1.57881682,4746.2,4745.8,0.5829]
[1756036265159,1.0289,4745.9,4745.8,1.327]
[1756036265367,0.975,4745.9,4745.8,1.327]
[1756036265666,1.0289,4745.9,4745.8,1.327]
[1756036266463,1.58016918,4745.9,4745.8,0.23]
[1756036266661,1.58016918,4745.9,4745.8,0.7488]
[1756036266963,1.58016918,4745.9,4745.8,1.3365]
[1756036268862,1.55946918,4745.9,4745.8,1.3365]
[1756036269063,1.52626918,4745.9,4745.8,1.3365]
[1756036269558,0.55126918,4745.9,4745.8,1.3365]
[1756036270063,0.55020226,4745.9,4745.8,1.3365]
[1756036270960,0.3367,4746.2,4745.8,1.3365]
[1756036271266,0.55013884,4746.1,4746.0,1.3484]
[1756036273255,0.88683884,4746.1,4746.0,1.3484]
[1756036273654,1.10563884,4746.1,4746.0,1.3484]
[1756036274562,1.26263884,4746.1,4746.0,1.3484]
[1756036274863,1.49123884,4746.1,4746.0,1.3484]
[1756036275064,1.26263884,4746.1,4746.0,1.3484]
[1756036275664,1.49123884,4746.1,4746.0,1.3484]
[1756036276066,1.54453884,4746.1,4746.0,1.3484]
[1756036279578,1.54453884,4746.1,4746.0,0.2348]
[1756036280072,0.6372,4745.9,4745.8,0.2348]
[1756036280280,1.54474207,4745.9,4745.8,0.2348]
[1756036281176,1.54474207,4745.9,4745.8,0.7607]
[1756036281376,1.54474207,4745.9,4745.8,1.3484]
[1756036285882,1.26284207,4745.9,4745.8,1.3484]
[1756036286084,0.55034207,4745.9,4745.8,1.3484]
[1756036288287,1.10584207,4745.9,4745.8,1.3484]
[1756036288488,1.26284207,4745.9,4745.8,1.3484]
[1756036290992,1.54474207,4745.9,4745.8,0.2348]
[1756036291188,1.54474207,4745.9,4745.8,0.4593]
[1756036291491,1.54474207,4745.9,4745.8,0.2348]
[1756036295493,1.54474207,4745.9,4745.8,0.4593]
[1756036295679,1.54474207,4745.9,4745.8,0.6145]
[1756036296687,1.54474207,4745.9,4745.8,0.7607]
[1756036297091,1.54474207,4745.9,4745.8,1.1151]
[1756036297389,1.54474207,4745.9,4745.8,1.3364]
[1756036303089,1.54474207,4745.9,4745.8,0.7607]
[1756036303296,1.54474207,4745.9,4745.5,0.2222]
[1756036303589,1.009,4745.5,4745.4,0.2222]
[1756036303898,1.55934207,4745.5,4745.4,0.2222]
[1756036304391,0.423,4745.3,4745.2,0.2222]
[1756036304701,1.55934207,4745.3,4745.2,0.2222]
[1756036305283,1.55934207,4745.3,4745.2,0.5982]
[1756036305486,1.55934207,4745.3,4745.2,1.1071]
[1756036305894,1.55934207,4745.3,4745.2,1.3284]
[1756036308089,1.50604207,4745.3,4745.2,1.3284]
[1756036308290,0.78694207,4745.3,4745.2,1.3284]
[1756036308492,0.3396,4745.8,4745.3,0.797]
[1756036308698,0.9557,4745.8,4745.7,1.3284]
[1756036308889,1.52973852,4745.8,4745.7,1.3284]
[1756036309092,1.56253852,4745.8,4745.7,1.3284]
[1756036310487,0.586,4745.7,4745.4,0.2222]
[1756036310690,1.009,4745.5,4745.4,0.2222]
[1756036310891,1.56253852,4745.5,4745.4,0.2222]
[1756036311093,1.56253852,4745.5,4745.4,0.7527]
[1756036312197,1.56253852,4745.5,4745.4,0.2222]
[1756036312897,1.56253852,4745.5,4745.4,0.4426]
[1756036313200,1.56253852,4745.5,4745.4,0.7527]
[1756036313398,1.54203852,4745.5,4745.4,0.974]
[1756036313594,0.3396,4746.5,4746.2,0.5314]
[1756036313792,0.3396,4746.8,4746.7,0.5314]
[1756036313993,0.89313035,4746.8,4746.7,1.3284]
[1756036314303,1.28333035,4746.8,4746.7,1.3284]
[1756036314696,0.55353035,4746.8,4746.7,1.3284]
[1756036314996,0.3396,4747.0,4746.9,1.3284]
[1756036315295,0.89295277,4747.1,4746.9,0.5314]
[1756036315489,0.55335277,4747.0,4746.9,1.3284]
[1756036315892,1.28315277,4747.0,4746.9,1.3284]
[1756036316092,0.3396,4747.6,4746.9,1.3284]
[1756036316304,1.28300373,4747.5,4747.4,1.3284]
[1756036316498,1.56220373,4747.5,4747.4,0.7527]
[1756036317702,1.56220373,4747.5,4747.4,1.3284]
[1756036318397,1.009,4747.5,4747.4,1.3284]
[1756036318603,0.9557,4747.5,4747.4,1.3284]
[1756036319604,1.009,4747.5,4747.4,1.3284]
[1756036320503,1.009,4747.5,4747.4,0.2222]
[1756036321501,1.009,4747.5,4747.4,0.7527]
[1756036321800,1.009,4747.5,4747.4,1.3284]
[1756036322590,1.009,4747.5,4747.4,0.7527]
[1756036323000,1.009,4747.5,4747.4,0.2222]
[1756036324799,0.7298,4747.5,4747.4,1.3284]
[1756036325393,1.009,4747.5,4747.4,1.3284]
[1756036325801,0.9885,4747.5,4747.4,1.3284]
[1756036326604,1.009,4747.5,4747.4,1.3284]
[1756036331511,0.9557,4747.5,4747.4,1.3284]
[1756036333003,0.7298,4747.5,4747.4,1.3284]
[1756036334412,1.0238,4747.5,4747.4,1.3284]
[1756036337119,1.0238,4747.5,4747.4,1.1047]
[1756036337306,1.0238,4747.5,4747.4,1.3234]
[1756036339518,0.9708,4747.5,4747.4,1.3234]
[1756036339913,1.0238,4747.5,4747.4,0.5982]
[1756036340422,1.0238,4747.5,4747.4,1.3208]
[1756036340720,1.57265612,4747.5,4747.4,1.3208]
[1756036342628,1.27865612,4747.5,4747.4,1.3208]
[1756036342819,0.54885612,4747.5,4747.4,1.3208]
[1756036343918,1.11385612,4747.5,4747.4,1.3208]
[1756036344319,1.27355612,4747.5,4747.4,1.3208]
[1756036344521,1.51455612,4747.5,4747.4,1.3208]
[1756036345122,1.27355612,4747.5,4747.4,1.3208]
[1756036345728,0.54885612,4747.5,4747.4,1.3208]
[1756036345927,0.88405612,4747.5,4747.4,1.3208]
[1756036346320,1.27355612,4747.5,4747.4,1.3208]
[1756036346724,0.77865612,4747.5,4747.4,1.3208]
[1756036346925,0.54885612,4747.5,4747.4,1.3418]
[1756036347228,0.0204,4748.3,4747.4,1.3418]
[1756036347229,0.241,4748.4,4748.2,1.3547]
[1756036347531,0.241,4748.4,4748.3,1.3547]
[1756036349930,0.241,4748.8,4748.5,0.8313]
[1756036350129,0.241,4748.8,4748.7,1.3547]
[1756036350130,0.7359,4748.8,4748.7,1.3547]
[1756036350326,0.9657,4748.8,4748.7,1.3547]
[1756036351030,1.1886,4748.8,4748.7,1.3547]
[1756036351430,1.3375,4748.8,4748.7,1.3547]
[1756036352733,1.3375,4749.3,4749.2,1.1131]
[1756036353836,1.3375,4749.3,4749.2,0.5424]
[1756036354129,1.3375,4749.3,4749.2,0.7611]
[1756036354331,1.3375,4749.3,4749.2,1.1131]
[1756036354934,0.9657,4749.3,4749.2,1.3547]
[1756036355433,0.2229,4749.7,4749.2,1.3547]
[1756036355735,0.2229,4749.7,4749.0,0.021]
[1756036355736,0.5762,4749.6,4749.5,1.3547]
[1756036355933,0.9657,4749.6,4749.5,1.3547]
[1756036356527,1.1886,4749.6,4749.5,1.3547]
[1756036356734,0.9657,4749.6,4749.5,1.3547]
[1756036356930,0.241,4749.6,4749.5,1.3547]
[1756036357134,0.6184,4750.2,4750.1,0.3025]
[1756036357333,0.6184,4750.2,4750.1,0.8928]
[1756036357837,1.3934,4750.2,4750.1,0.8928]
[1756036358931,1.3934,4750.2,4750.1,1.3591]
[1756036359239,1.93950029,4750.2,4750.1,1.3591]
[1756036359433,1.71740029,4750.2,4750.1,1.3591]
[1756036359638,1.01080029,4750.2,4750.1,1.3591]
[1756036359935,0.1,4750.2,4750.1,1.3591]
[1756036360240,0.1,4750.2,4750.1,5.3591]
[1756036360434,0.1,4750.2,4750.1,5.3801]
[1756036360836,0.5896,4751.3,4751.2,0.5369]
[1756036361039,1.28289558,4751.3,4751.2,1.3591]
[1756036361240,1.83879558,4751.3,4751.2,1.3591]
[1756036361635,1.2934,4751.3,4751.2,1.3591]
[1756036361833,1.83839118,4751.3,4751.2,1.3591]
[1756036362550,1.83839118,4751.3,4751.2,0.8928]
[1756036362731,1.83839118,4751.3,4751.2,0.7379]
[1756036362935,1.83839118,4751.3,4751.2,0.8928]
[1756036363343,1.83839118,4751.3,4751.2,1.1272]
[1756036364543,1.2934,4751.3,4751.2,1.1272]
[1756036366942,0.775,4752.4,4750.9,0.021]
[1756036367248,1.2934,4752.2,4752.1,0.8928]
[1756036367445,1.83703663,4752.2,4752.1,0.5339]
[1756036367645,1.83703663,4752.2,4752.1,0.379]
[1756036367840,1.83703663,4752.2,4752.1,1.3591]
[1756036368146,0.4412,4752.5,4752.1,1.3591]
[1756036368451,0.76221,4752.4,4752.3,1.3591]
[1756036368741,1.46351,4752.4,4752.3,1.3591]
[1756036369146,1.46350561,4752.4,4752.3,1.3591]
[1756036369547,1.06150561,4752.4,4752.1,0.2314]
[1756036369748,1.2934,4752.2,4752.1,0.2314]
[1756036370058,1.2934,4752.2,4752.1,0.5339]
[1756036370252,1.2934,4752.2,4752.1,0.8928]
[1756036370444,1.2934,4752.2,4752.1,1.1272]
[1756036370645,1.8361777,4752.2,4752.1,1.1272]
[1756036370942,0.5184,4751.9,4751.8,0.2314]
[1756036371150,1.2934,4751.9,4751.8,0.2314]
[1756036371449,1.2934,4751.9,4751.8,0.379]
[1756036371660,0.021,4752.6,4751.7,0.1476]
[1756036371661,0.5184,4751.8,4751.7,0.1476]
[1756036371845,1.2934,4751.8,4751.7,0.379]
[1756036372043,1.2934,4751.2,4751.1,0.1476]
[1756036372350,1.2934,4751.2,4751.1,0.3025]
[1756036372546,0.5529,4751.2,4751.1,1.3591]
[1756036372740,0.2191,4751.2,4751.1,1.3591]
[1756036373348,0.5866,4751.2,4751.1,1.3591]
[1756036373546,1.2934,4751.2,4751.1,1.1272]
[1756036373949,1.2934,4751.2,4751.1,0.5339]
[1756036374651,1.2934,4750.9,4750.8,0.5339]
[1756036374953,1.2934,4750.9,4750.8,1.3591]
[1756036375843,1.0713,4750.9,4750.8,1.3591]
[1756036376455,1.2934,4750.9,4750.8,1.1272]
[1756036377250,1.2934,4750.9,4750.8,1.3591]
[1756036377446,0.2191,4751.2,4751.1,0.5369]
[1756036377651,0.3338,4751.5,4751.1,1.3591]
[1756036377853,0.76264481,4751.4,4751.3,0.5369]
[1756036378151,1.83694481,4751.4,4751.3,0.8928]
[1756036378460,0.5184,4750.6,4750.5,0.7688]
[1756036378645,1.0743,4750.6,4750.5,1.1277]
[1756036378951,1.2934,4750.6,4750.5,1.1277]
[1756036379256,1.2934,4750.6,4750.5,1.3591]
[1756036380346,1.0713,4750.6,4750.5,1.3591]
[1756036380548,0.9204,4750.6,4750.5,1.3591]
[1756036380758,0.5866,4750.6,4750.5,1.3591]
[1756036381156,0.9204,4750.6,4750.5,1.3591]
[1756036381561,0.2191,4750.6,4750.5,1.3591]
[1756036381753,0.2221,4750.9,4750.5,0.5369]
[1756036381949,0.9204,4750.8,4750.7,0.7683]
[1756036382153,0.9204,4750.8,4750.7,1.3591]
[1756036382355,0.2191,4751.1,4750.7,0.5369]
[1756036382562,0.9204,4751.1,4751.0,1.3591]
[1756036382854,1.2934,4751.1,4751.0,0.5903]
[1756036383058,0.5184,4751.1,4750.4,0.2319]
[1756036383259,1.2934,4750.8,4750.7,1.1272]
[1756036383459,1.2934,4750.8,4750.7,1.3591]
[1756036383661,1.0713,4750.8,4750.7,1.3591]
[1756036384155,1.2934,4750.8,4750.7,1.3591]
[1756036384962,1.2934,4750.8,4750.7,1.1272]
[1756036386264,1.2934,4750.8,4750.7,1.3591]
[1756036386950,0.2189,4751.1,4750.7,1.3591]
[1756036387150,0.54568475,4751.0,4750.9,0.5329]
[1756036387356,0.54568475,4751.0,4750.9,1.3257]
[1756036389266,0.54568475,4751.0,4750.9,1.3467]
[1756036389665,0.54568475,4751.0,4750.9,1.3257]
[1756036391364,0.54568475,4751.0,4750.9,5.51369353]
[1756036391566,0.2261,4752.1,4750.9,5.51369353]
[1756036391863,0.3831,4752.0,4751.9,0.4039]
[1756036392166,0.8667,4752.0,4751.9,0.7039]
[1756036392576,1.0856,4752.0,4751.9,0.7039]
[1756036393763,1.3117,4752.0,4751.9,0.7039]
[1756036394159,0.5574,4751.9,4750.6,0.3774]
[1756036394365,1.3117,4751.8,4751.7,0.3697]
[1756036394665,1.3117,4751.8,4751.7,0.7039]
[1756036395756,1.3117,4751.8,4751.7,0.3697]
[1756036395957,1.3117,4751.8,4751.7,0.4506]
[1756036396158,1.1666,4751.8,4751.7,0.7039]
[1756036396360,0.2189,4751.8,4751.7,0.7813]
[1756036396870,0.602,4751.8,4751.7,0.7813]
[1756036397069,0.9405,4751.8,4751.7,0.7039]
[1756036397272,0.3759,4751.8,4751.7,0.7039]
[1756036398066,0.3759,4751.8,4751.7,0.7813]
[1756036398264,0.3385,4752.7,4751.8,0.2191]
[1756036398465,0.9405,4752.0,4751.9,0.7039]